Cogmind - Beta 16 @@@ ROGUE MODE // 2025.12.28 @ 17:39:05 // Winter2022/Polymind Player: Compilatron Result: Destroyed by L-41 Fighter with Axe Performance ------------- Evolutions (5) 2500 Regions Visited (7) 1400 Robots Destroyed (11) 55 Value Destroyed (412) 412 Prototype IDs (1) 20 Alien Tech Used (0) 0 Bonus (4446) 4446 TOTAL SCORE: 8223 Bonus ------- Polymind Skill 2920 Pacifist 1026 Entered DSFs 500 Cogmind --------- Core Integrity 0/1000 Matter 0/0 Energy 99/100 System Corruption 3% Temperature Cool (27) Movement Core (50) Location -5/Upper Caves Parts ------- > --- POWER (1) -------- (None) > --- PROPULSION (2) --- (None) > --- UTILITY (0) ------ (None) > --- WEAPON (1) ------- (None) > --- INVENTORY (0) ---- (None) Peak State ------------ > --- POWER ------------ Reinforced Deuterium Engine > --- PROPULSION ------- Armored Treads Armored Treads Armored Treads > --- UTILITY ---------- Cooling System Visual Processing Unit Active Sensor Suite Targeting Computer Weapon Cycler Transmission Jammer Hardened Heavy Armor Plating Graphene Brace Dynamic Insulation System > --- WEAPON ----------- Heavy Assault Cannon > --- INVENTORY -------- (None) [Rating: 78] Favorites ----------- Power Reinforced Deuterium Engine Engine Reinforced Deuterium Engine Power Core Micro Fission Core Propulsion Armored Treads Treads Armored Treads Hover Unit Antigrav System Flight Unit VTOL Module Utility Cooling System Device Cooling System Processor Visual Processing Unit Protection Hardened Heavy Armor Plating Weapon Heavy Assault Cannon Energy Gun Backup Laser III Ballistic Gun Autogun Ballistic Cannon Heavy Assault Cannon Special Weapon Improved Remote Datajack Build | -11 -10 -10 -8 -6 -6 -5 -5 ------- Run | Yrd Mat Sub Scr Fac DSF Fac Upp Slots Evolved . | . . . . . . . . Power . | . . . . . . . . Propulsion . | . . . . . . . . Utility . | . . . . . . . . Weapon . | . . . . . . . . Parts Attached . | . . . . . . . . Power . | . . . . . . . . Engine . | . . . . . . . . Core . | . . . . . . . . Reactor . | . . . . . . . . Propulsion . | . . . . . . . . Treads . | . . . . . . . . Leg . | . . . . . . . . Wheel . | . . . . . . . . Hover . | . . . . . . . . Flight . | . . . . . . . . Utility . | . . . . . . . . Device . | . . . . . . . . Storage . | . . . . . . . . Processor . | . . . . . . . . Hackware . | . . . . . . . . Protection . | . . . . . . . . Artifact . | . . . . . . . . Weapon . | . . . . . . . . Energy Gun . | . . . . . . . . Energy Cannon . | . . . . . . . . Ballistic Gun . | . . . . . . . . Ballistic Cannon . | . . . . . . . . Launcher . | . . . . . . . . Special Weapon . | . . . . . . . . Impact Weapon . | . . . . . . . . Slashing Weapon . | . . . . . . . . Piercing Weapon . | . . . . . . . . Special Melee Weapon . | . . . . . . . . Unidentified Prototypes . | . . . . . . . . Parts Lost 8 | . . . . . . 1 7 Power 1 | . . . . . . . 1 Propulsion 3 | . . . . . . . 3 Utility 1 | . . . . . . 1 . Weapon 3 | . . . . . . . 3 Highest Loss Streak 4 | . . . . . . 1 4 To Critical Strikes . | . . . . . . . . Average Backups . | . . . . . . . . Power . | . . . . . . . . Propulsion . | . . . . . . . . Utility . | . . . . . . . . Weapon . | . . . . . . . . Tool/Special . | . . . . . . . . Unused Backups . | . . . . . . . . Power . | . . . . . . . . Propulsion . | . . . . . . . . Utility . | . . . . . . . . Weapon . | . . . . . . . . Tool/Special . | . . . . . . . . Average Slot Usage (%) 55 | . . . . . 55 74 73 Engine 2 | . . . . . 3 4 . Core 2 | . . . . . . . 15 Treads 9 | . . . . . 11 15 . Hover 1 | . . . . . . 1 7 Flight 2 | . . . . . . . 21 Device 18 | . . . . . 23 28 8 Processor 7 | . . . . . 7 11 4 Protection 2 | . . . . . 3 4 . Ballistic Gun 1 | . . . . . . . 10 Ballistic Cannon 2 | . . . . . 3 4 . Peak Build Rating 78 | . . . . . 78 78 35 Average Rating 47 | . . . . . 59 73 15 On Entrance 14 | . . . . . . 78 35 Avg Prop Armor Cover (%) . | . . . . . . . . Naked Turns 601 | . 96 234 183 7 14 1 66 Heaviest Build 58 | . . . . . 58 58 13 Greatest Support 60 | 3 3 3 3 3 60 60 19 Greatest Overweight (x) . | . . . . . . . . Average Overweight (x) . | . . . . . . . . Largest Inventory Capacity 5 | . . . . . 1 5 5 Average Capacity . | . . . . . . 1 1 Most Carried . | . . . . . . . . Average Carried . | . . . . . . . . Final Capacity 5 | . . . . . 1 5 . Final Carried . | . . . . . . . . Class Distribution -------------------- 59% | Heavy 27% | Cogmind 7% | Programmer 6% | Swarmer Dominant Class ---------------- Cogmind | -10/Materials Cogmind | -10/Subcaves Cogmind | -8/Scraptown Cogmind | -6/Factory Heavy | -6/DSF Heavy | -5/Factory Swarmer | -5/Upper Caves Resources | -11 -10 -10 -8 -6 -6 -5 -5 ----------- Run | Yrd Mat Sub Scr Fac DSF Fac Upp Matter Collected 290 | . . . . . . 174 116 Remotely . | . . . . . . . . Salvage Created 302 | . . . . . . 108 194 Parts 18 | . . . . . . 10 8 Haulers Intercepted . | . . . . . . . . Recyclers Shooed . | . . . . . . . . Parts Field Recycled . | . . . . . . . . Retrieved Matter . | . . . . . . . . Parts Self-Destructed 13 | . . . . . . . 13 Prevented . | . . . . . . . . Parts Restored . | . . . . . . . . Kills | -11 -10 -10 -8 -6 -6 -5 -5 ------- Run | Yrd Mat Sub Scr Fac DSF Fac Upp Combat Hostiles Destroyed 8 | . . . . . . 3 5 Melee 1 | . . . . . . 1 . Guns 5 | . . . . . . . 5 Cannons 2 | . . . . . . 2 . Classes Destroyed 6 | . . . . . . 5 1 Builder 1 | . . . . . . 1 . Tunneler 1 | . . . . . . 1 . Operator 1 | . . . . . . 1 . Swarmer 4 | . . . . . . . 4 Sentry 2 | . . . . . . 2 . Programmer 2 | . . . . . . 1 1 Best Kill Streak 3 | . . . . . . 3 3 Combat Bots Only 3 | . . . . . . 1 3 Max Kills in Single Turn 1 | . . . . . . 1 1 Gunslinging . | . . . . . . . . Exploded . | . . . . . . . . Melee 1 | . . . . . . 1 . Uniques/NPCs Destroyed . | . . . . . . . . Combat | -11 -10 -10 -8 -6 -6 -5 -5 -------- Run | Yrd Mat Sub Scr Fac DSF Fac Upp Hostile Shots Fired 215 | . . . . . 2 64 149 Missed 74 | . . . . . 1 13 60 Hits 141 | . . . . . 1 51 89 Melee 2 | . . . . . . . 2 Projectile 139 | . . . . . 1 51 87 Critical Strikes 4 | . . . . . . 3 1 Actively Blocked 3 | . . . . . . 3 . Damage Taken 2683 | . . . . . 49 1185 1449 Core 1057 | . . . . . 49 73 935 Absorbed by Shields . | . . . . . . . . Core Remaining (%) 98 | 100 . . 100 . 94 . . Volleys Fired 57 | . . . . . . 27 30 Largest 1 | . . . . . . 1 1 Hottest 50 | . . . . . . 50 40 Shots Fired 57 | . . . . . . 26 31 Gun 31 | . . . . . . . 31 Cannon 26 | . . . . . . 26 . Launcher . | . . . . . . . . Special . | . . . . . . . . Kinetic 55 | . . . . . . 26 29 Thermal 2 | . . . . . . . 2 Explosive . | . . . . . . . . Electromagnetic . | . . . . . . . . Robot Hit Streak 12 | . . . . . . 12 4 Robot Miss Streak 3 | . . . . . . 2 3 Penetration Max . | . . . . . . . . Secondary Targets . | . . . . . . . . Shots Hit Robots 36 | . . . . . . 21 15 Core Hits 18 | . . . . . . 8 10 Critical Kills . | . . . . . . . . Critical Parts Destroyed . | . . . . . . . . Critical Strikes 4 | . . . . . . 4 . Blast 4 | . . . . . . 4 . Melee Attacks . | . . . . . . . . Impact . | . . . . . . . . Slashing . | . . . . . . . . Piercing . | . . . . . . . . Sneak Attacks . | . . . . . . . . Combat Hostiles . | . . . . . . . . Follow-up Attacks . | . . . . . . . . Damage Inflicted 1593 | . . . . . . 1270 323 Guns 306 | . . . . . . . 306 Cannons 1240 | . . . . . . 1240 . Explosions . | . . . . . . . . Melee . | . . . . . . . . Ramming 47 | . . . . . . 30 17 Kinetic 1521 | . . . . . . 1240 281 Thermal 25 | . . . . . . . 25 Explosive . | . . . . . . . . Electromagnetic . | . . . . . . . . Impact . | . . . . . . . . Slashing . | . . . . . . . . Piercing . | . . . . . . . . Highest Corruption 3 | . . . . . . 1 3 Average Corruption 1 | . . . . . . 1 2 Corruption Purged . | . . . . . . . . Corruption Blocked . | . . . . . . . . Effects 14 | . . . . . . 6 8 Message Errors 3 | . . . . . . . 3 Matter Fused 1 | . . . . . . . 1 Heat Flow Errors 2 | . . . . . . 1 1 Energy Discharges 3 | . . . . . . 2 1 Parts Fused 1 | . . . . . . 1 . Data Loss (major) 1 | . . . . . . 1 . Misfires 1 | . . . . . . . 1 Alerts 1 | . . . . . . . 1 Weapon Failures 1 | . . . . . . 1 . Overload Shots . | . . . . . . . . Overflow Damage 111 | . . . . . . 111 . Projectiles 111 | . . . . . . 111 . Explosions . | . . . . . . . . Melee . | . . . . . . . . Knockbacks 3 | . . . . . . 3 . Impact . | . . . . . . . . Kinetic 3 | . . . . . . 3 . Secondary . | . . . . . . . . Self-Inflicted Damage 8 | . . . . . . . 8 Shots . | . . . . . . . . Rammed 10 | . . . . . . 5 5 Targets Rammed 10 | . . . . . . 5 5 Kicked . | . . . . . . . . Crushed . | . . . . . . . . Highest Temperature 199 | . . . . . . 143 199 Average Temperature 69 | . . . . . . 34 74 Received Heat Transfer 234 | . . . . . . 207 27 Siege Activations . | . . . . . . . . Martial Activations . | . . . . . . . . Shielding Activations . | . . . . . . . . Robots Disrupted . | . . . . . . . . Combat Hostiles . | . . . . . . . . Robots Corrupted . | . . . . . . . . Combat Hostiles . | . . . . . . . . Parts Fried . | . . . . . . . . Impact Corruptions . | . . . . . . . . Robots Melted . | . . . . . . . . Combat Hostiles . | . . . . . . . . Parts Melted . | . . . . . . . . Heat Transferred 74 | . . . . . . . 74 Parts Sabotaged . | . . . . . . . . Parts Stolen . | . . . . . . . . Parts Stripped . | . . . . . . . . Power Chain Reactions . | . . . . . . . . Alert | -11 -10 -10 -8 -6 -6 -5 -5 ------- Run | Yrd Mat Sub Scr Fac DSF Fac Upp Maximum Alert Level . | . . . . . . . . Low Security (%) 100 | . 100 . . 100 100 100 . Level 1 . | . . . . . . . . Level 2 . | . . . . . . . . Level 3 . | . . . . . . . . Level 4 . | . . . . . . . . Level 5 . | . . . . . . . . High Security . | . . . . . . . . Max Security . | . . . . . . . . Peak Influence 48 | . . . . . . 48 . Initial . | . . . . . . . . Average 5 | . . . . . . 5 . Influence Increases 320 | . . . . . . 150 170 Destroy 0b10 Robot/C 160 | . . . . . . 60 100 Destroy 0b10 Robot/NC 15 | . . . . . . 15 . Destroy Leader 40 | . . . . . . 30 10 Successful Hack 16 | . . . . . . 16 . Destroy Structure 14 | . . . . . . 14 . Lose Combat Pursuer 75 | . . . . . . 15 60 Influence Decreases 290 | . . . . . . 150 140 Time Decay 250 | . . . . . . 150 100 Lost Part 40 | . . . . . . . 40 Squads Dispatched 3 | . . . . . . 3 . Investigation . | . . . . . . . . Extermination 2 | . . . . . . 2 . Reinforcement . | . . . . . . . . Assault . | . . . . . . . . Garrison 1 | . . . . . . 1 . Intercept . | . . . . . . . . Searches Triggered . | . . . . . . . . Construction Impeded . | . . . . . . . . Haulers Reinforced . | . . . . . . . . Active Scanning Responses . | . . . . . . . . Cargo Convoy Interrupts . | . . . . . . . . Stealth | -11 -10 -10 -8 -6 -6 -5 -5 --------- Run | Yrd Mat Sub Scr Fac DSF Fac Upp Distress Signals . | . . . . . . . . Communications Jammed 6 | . . . . . . 6 . Distress Signals 6 | . . . . . . 6 . Times Spotted 35 | . . 1 . . 1 7 26 Peak Tracking Total 10 | . . 1 . . 1 3 10 Tactical Retreats 4 | . . . . . . 1 3 Traps | -11 -10 -10 -8 -6 -6 -5 -5 ------- Run | Yrd Mat Sub Scr Fac DSF Fac Upp Traps Triggered . | . . . . . . . . Indirectly . | . . . . . . . . Trap Hack Attempts . | . . . . . . . . Triggered . | . . . . . . . . Disarmed . | . . . . . . . . Reprogrammed . | . . . . . . . . Reused . | . . . . . . . . Traps Extracted . | . . . . . . . . Installed . | . . . . . . . . Triggered . | . . . . . . . . Machines | -11 -10 -10 -8 -6 -6 -5 -5 ---------- Run | Yrd Mat Sub Scr Fac DSF Fac Upp Machines Disabled . | . . . . . . . . Max in Single Turn . | . . . . . . . . Machines Repaired . | . . . . . . . . Machines Dismantled . | . . . . . . . . Machines Sabotaged . | . . . . . . . . Overloaded Fab Kills . | . . . . . . . . Hacking | -11 -10 -10 -8 -6 -6 -5 -5 --------- Run | Yrd Mat Sub Scr Fac DSF Fac Upp Machines Accessed 3 | . . . . 1 . 2 . Terminals 3 | . . . . 1 . 2 . Fabricators . | . . . . . . . . Repair Stations . | . . . . . . . . Recycling Units . | . . . . . . . . Scanalyzers . | . . . . . . . . Garrison Access . | . . . . . . . . Total Hacks 5 | . . . . 3 . 2 . Successful 2 | . . . . 1 . 1 . Failed 3 | . . . . 2 . 1 . Catastrophic . | . . . . . . . . Database Lockouts . | . . . . . . . . Manual 2 | . . . . . . 2 . Terminals 5 | . . . . 3 . 2 . Fabricators . | . . . . . . . . Repair Stations . | . . . . . . . . Recycling Units . | . . . . . . . . Scanalyzers . | . . . . . . . . Garrison Access . | . . . . . . . . Terminal Hacks 1 | . . . . 1 . . . Open DSF 1 | . . . . 1 . . . Fabricator Hacks . | . . . . . . . . Repair Station Hacks . | . . . . . . . . Recycling Unit Hacks . | . . . . . . . . Scanalyzer . | . . . . . . . . Garrison Access Hacks . | . . . . . . . . Unauthorized Hacks 1 | . . . . . . 1 . Terminals 1 | . . . . . . 1 . Assimilate 1 | . . . . . . 1 . Fabricators . | . . . . . . . . Repair Stations . | . . . . . . . . Recycling Units . | . . . . . . . . Scanalyzers . | . . . . . . . . Garrison Access . | . . . . . . . . Data Cores Recovered . | . . . . . . . . Used . | . . . . . . . . Hacking Detections 2 | . . . . 1 . 1 . Full Trace Events . | . . . . . . . . Feedback Events . | . . . . . . . . Feedback Blocked . | . . . . . . . . Robot Schematics Acquired . | . . . . . . . . Robots Built . | . . . . . . . . Authchips . | . . . . . . . . Time . | . . . . . . . . Total Robot Build Rating . | . . . . . . . . Part Schematics Acquired . | . . . . . . . . Parts Built . | . . . . . . . . Authchips . | . . . . . . . . Time . | . . . . . . . . Total Part Build Rating . | . . . . . . . . Part Studies Acquired . | . . . . . . . . Parts Repaired . | . . . . . . . . Time . | . . . . . . . . Parts Recycled . | . . . . . . . . Recycled Matter . | . . . . . . . . Retrieved Matter . | . . . . . . . . Retrieved Components . | . . . . . . . . Parts Scanalyzed . | . . . . . . . . Part Schematics Acquired . | . . . . . . . . Parts Damaged . | . . . . . . . . Bothacking | -11 -10 -10 -8 -6 -6 -5 -5 ------------ Run | Yrd Mat Sub Scr Fac DSF Fac Upp Used RIF Installer . | . . . . . . . . Robots Hacked 3 | . . . . . 1 1 1 Non-combat . | . . . . . . . . Combat 3 | . . . . . 1 1 1 Robot Hacks Applied 4 | . . . . . 1 2 1 find_shortcuts 3 | . . . . . 1 1 1 find_garrison 1 | . . . . . . 1 . Relay Couplers Released . | . . . . . . . . Fabnet Peak Effective % . | . . . . . . . . Robots Rewired . | . . . . . . . . Allies Hacked . | . . . . . . . . Hacks Repelled . | . . . . . . . . Allies | -11 -10 -10 -8 -6 -6 -5 -5 -------- Run | Yrd Mat Sub Scr Fac DSF Fac Upp Total Allies 1 | . . . . . . 1 . Largest Group 1 | . . . . . . 1 . Highest-Rated Group 26 | . . . . . . 26 . Highest-Rated Ally 26 | . . . . . . 26 . Total Orders . | . . . . . . . . Ally Attacks . | . . . . . . . . Total Damage . | . . . . . . . . Kills . | . . . . . . . . Allies Corrupted . | . . . . . . . . Allies Melted . | . . . . . . . . Intel | -11 -10 -10 -8 -6 -6 -5 -5 ------- Run | Yrd Mat Sub Scr Fac DSF Fac Upp Active Infowar (turns) 1312 | . . . . . 45 1267 . Optics 1312 | . . . . . 45 1267 . A.S.S. 1312 | . . . . . 45 1267 . Jamming 529 | . . . . . 45 484 . Robot Analysis Total 3 | . . . . . 1 1 1 Derelict Logs Recovered 1 | . . . . . . . 1 Drone Launches . | . . . . . . . . Drone Recoveries . | . . . . . . . . Exploration | -11 -10 -10 -8 -6 -6 -5 -5 ------------- Run | Yrd Mat Sub Scr Fac DSF Fac Upp Turns Passed 2223 | . 96 234 183 7 59 1335 309 Spaces Moved 1450 | 1 88 129 363 13 54 265 537 Core 744 | 1 88 129 363 13 26 3 121 Treads 188 | . . . . . 28 160 . Legs . | . . . . . . . . Wheels . | . . . . . . . . Hover 246 | . . . . . . 102 144 Flight 272 | . . . . . . . 272 Fastest Speed 32 | 50 50 50 50 50 50 50 32 Average Speed 64 | 50 50 50 50 50 112 128 44 Slowest Speed 170 | 50 50 50 50 50 170 170 66 Overloaded Moves . | . . . . . . . . Propulsion Burnouts . | . . . . . . . . Robots Hopped . | . . . . . . . . Potential Cave-ins . | . . . . . . . . Cave-ins Triggered . | . . . . . . . . Exploration Rate (%) 32 | 2 10 17 39 . 87 8 61 Regions Visited 7 Branch Regions 3 Pre-discovered Areas 2 | . . 1 . . . . 1 Known Exits Taken 2 | . . . . 1 . 1 . Unknown Exits Taken 4 | 1 1 1 1 . . . . Scrap Searched 1 | . . . . . . . 1 Spaces Dug . | . . . . . . . . Terrain Destroyed 8 | . . . . . . 8 . Melee . | . . . . . . . . Projectile 8 | . . . . . . 8 . AOE . | . . . . . . . . Terrain Rammed . | . . . . . . . . Walls Destroyed . | . . . . . . . . Machines Disabled . | . . . . . . . . Actions | -11 -10 -10 -8 -6 -6 -5 -5 --------- Run | Yrd Mat Sub Scr Fac DSF Fac Upp Total 2665 | . 139 297 363 12 53 1224 577 Wait 1152 | . 52 169 1 . . 928 2 Move 1443 | . 87 128 362 12 53 264 537 Hop . | . . . . . . . . Pick Up . | . . . . . . . . Fast Attach . | . . . . . . . . Attach . | . . . . . . . . Detach . | . . . . . . . . Swap . | . . . . . . . . Drop . | . . . . . . . . Fire 57 | . . . . . . 27 30 Melee . | . . . . . . . . Ram 5 | . . . . . . . 5 Kick . | . . . . . . . . Crush 5 | . . . . . . 5 . Escape Stasis . | . . . . . . . . Rewire . | . . . . . . . . Trap . | . . . . . . . . Miscellaneous 3 | . . . . . . . 3 Route ------- -11/Scrapyard -10/Materials -10/Subcaves -8/Scraptown -6/Factory -6/DSF -5/Factory -5/Upper Caves History --------- Turn | Location | Event 1 | -11/Scrapyard | Discovered new exit (range 0) 1 | -11/Scrapyard | Entered Materials 1 | -10/Materials | Discovered new exit (range 9) 2 | -10/Materials | Met a group of wandering Federalists 97 | -10/Materials | Entered Subcaves 98 | -10/Subcaves | Continued accompanying wandering Federalists (6) 98 | -10/Subcaves | Approached by a straggling Scientist 103 | -10/Subcaves | Shifting Twisted Machinery released Spk. Treads 128 | -10/Subcaves | Shifting Twisted Machinery released Shrapnel Trap 161 | -10/Subcaves | Learned location of Zion (-6) 161 | -10/Subcaves | Met a Zionite searching for "candidates" 323 | -10/Subcaves | Wandering Federalist uncovered a shortcut to Scraptown 331 | -10/Subcaves | Entered Scraptown 338 | -8/Scraptown | Lost 3 allies 422 | -8/Scraptown | Visited Fellowship of the Rings 485 | -8/Scraptown | Visited Symbiants 511 | -8/Scraptown | Discovered new exit (range 5) 514 | -8/Scraptown | Entered Factory 520 | -6/Factory | Identified exit to DSF 521 | -6/Factory | Entered DSF 541 | -6/DSF | Additional patrols routed to DSF 558 | -6/DSF | Discovered new exit (range 14) 579 | -6/DSF | Identified exit to Factory 580 | -6/DSF | Entered Factory 1054 | -5/Factory | P-70 Sage assimilated allied Administrator 6a 1071 | -5/Factory | Garrison activated, responded to threat 1077 | -5/Factory | Discovered new exit (range 17) 1807 | -5/Factory | Identified exit to Upper Caves 1915 | -5/Factory | Entered Upper Caves 2039 | -5/Upper Caves | Lost 3 parts (1n2w) 2167 | -5/Upper Caves | Core integrity fell below 50% 2198 | -5/Upper Caves | Lost 4 parts (1p2n1w) 2201 | -5/Upper Caves | Core integrity fell below 20% 2224 | -5/Upper Caves | Destroyed by L-41 Fighter with Axe Last Messages --------------- 02157_ S-27 Virus destroyed. 02159_ VTOL Module destroyed. 02160_ Lgt. Nuclear Core destroyed. 02165_ Lgt. Nuclear Core fries itself beyond repair. 02166_ Autogun destroyed. 02167_ VTOL Module destroyed. 02167_ Lost control of S-27 Virus. 02168_ Slammed into S-27 Virus. 02170_ S-27 Virus destroyed. 02170_ Acquired 7 Protomatter. 02179_ FYSYZB,ATVRVDUI3=CHWZDDQ%T|#3HD#7%J 02189_ Searching scrap... 02189_ Found IFF Parser. 02189_ Found Thermal Shield. 02189_ Found Variable Charge Gun. 02189_ Found Imp. Target Analyzer. 02189_ Found 57 Matter. 02207_ System corrupted: Energy discharge (-30). 02224_ Critical hit (Burn: +37). Map ----- +----------------------------------------------------+ | ????????????????????????????# ### ## | | ????????????????????????????## #### ## | | ????????????????????????????## #?# # | | ????????????????????????????# ### ### | | ????????????????????????????# #?#### | | ????????????????????????????## #????# | | ?????????????????????????????# ##???## | | ?????????????????????????????# ##???## | | ?????????????????????????????# ##???## | | ?????????????????????????????# #???## | | ?????????????????????????????# ###?# | | ?????????????????????????????# ### ## | | ?????????????????????????????# ### ### | | ?????????????????????????????# #?# #?# | | ?????????????????????????????###### #? #?# | | ??????????????????????????????????## ### #?? | | ???????????????????????????????????# #?## #### | | ????????????????????????????##?????# ## #??##### | | ???????????????????????????? ?????## #?##?????# | | ????????????????????????##### #?????###???#????## | | ????????????????????????# s"# #???????????? ??## | | ????????????????????????# "# #????????????# ## | | ????????????????????????+ l"# #?????????????# | | ????????????????????????+ g"# #?????????????### | | ????????????????????????#sl"# ##????????????### | | ????????????????????????#@l"# ###????####??# | | ???????????????????# ####/### ##??## ##?# | | ???????????????????# #### ### | | ??????????????# # ## ## | | ???????????????????# ##### # | | ?????????????????# ?????# ## ## | | ???????????????# #??????# ####### #####? | | ??????????????# #?????? ????# ####????? | | ??????????????# ???????#### ???# ##???????? | | ??????????????????????????## ## ??# #????????? | | ???????????????????????????## ##?? ## ##????????? | | ????????????????????????????# #????####?????????? | | ????????????????????????????# #?????????????????? | | ????????????????????????????# #?????????????????? | | ????????????????????????????# #?????????????????? | | ????????????????????????????? #?????????????????? | | ????????????????????????????? #?????????????????? | | ????????????????????????????? ??????????????????? | | ?????????????????????????????????????????????????? | | ?????????????????????????????????????????????????? | | ?????????????????????????????????????????????????? | | ?????????????????????????????????????????????????? | | ?????????????????????????????????????????????????? | | ?????????????????????????????????????????????????? | | ?????????????????????????????????????????????????? | +----------------------------------------------------+ Best States ------------- Heat Dissipation 55 Energy Generation 25 Energy Capacity 240 Matter Stores 100 Matter Capacity 100 Sight Range 18 Robot Scan Range 20 Terrain Scan Density 10 Jamming Range 12 EM Shielding 2 Armor Coverage 600 Resistance: EX 50 Resistance: EM 75 Resistance: I 50 Resistance: S 50 Resistance: P 50 Weapon Cycling 15 Evasion (%) 63 Targeting Accuracy 5 Target Analysis 6 Recoil Reduction 3 Item Schematics ----------------- None Robot Schematics ------------------ None Fabricated ------------ Nothing Repaired ---------- Nothing Studied --------- None Alien Tech Used ----------------- None Achievements -------------- Hack The Planet Challenges ------------ None Polymind | -11 -10 -10 -8 -6 -6 -5 -5 ---------- Run | Yrd Mat Sub Scr Fac DSF Fac Upp Hosts 3 | . . . . . 1 1 1 Combat Hostiles 3 | . . . . . 1 1 1 Allies . | . . . . . . . . Unique Host Classes 3 | . . . . . 1 1 1 Average Host Suspicion 56 | . . . . . 5 56 65 Unsuspicious Activity 991 | . . . . . 48 943 . Returns to Shadow 2 | . . . . . . 2 . Fuzzy Dispatches 2 | . . . . . . 2 . Protomatter Created 122 | . . 63 . . . 45 14 Used 163 | . . . . . 96 53 14 Decayed 5 | . . 5 . . . . . Highest Spend 96 | . . . . . 96 53 14 Top 5 Hosts by Kills: S-27 Virus (-5/Upper Caves: 5) H-61 Shepherd (-6/DSF: 3) Game ------ Seed HeavyLaserFlamer Manual? 0 Play Time 00:15:25 Cumulative 79.6 hours Start 2025.12.28 @ 17:27:01 End 2025.12.28 @ 17:39:05 Sessions 1 Manual Loads 0 Difficulty Rogue Special Mode Winter2022/Polymind Game No. 124 Rogue 100 Adventurer 20 Explorer 4 Win Type - Total 1 Types 0/0/0/1/0/0/0/0/0/0 Lore% 46 Gallery% 42 Achievement% 33 Wizard Run 0 Options --------- Layout 1 ASCII 0 Keyboard 0 Movement Numpad Keybinds 0 Fullscreen 2 Font 24/Smallcaps Map View 50x35 Zoom Use 0% Tactical HUD 1 Map Filters NONE Filters NONE Steam 1 RUN: 9e5df979-079d-47d8-b591-f9b5dddbf95d